bitfinex/quotes_ETHUSD_20241130
["timestamp","ask_amount","ask_price","bid_price","bid_amount"]
[1733007938165,2.68305,3727.1,3727.0,2.0]
[1733007938559,2.75574617,3727.1,3727.0,2.0]
[1733007939276,3.52344617,3727.1,3727.0,2.0]
[1733007940257,4.07344617,3727.1,3727.0,2.0]
[1733007940458,8.00339679,3727.1,3727.0,2.0]
[1733007945120,4.45339679,3727.1,3727.0,2.0]
[1733007946970,5.00339679,3727.1,3727.0,2.0]
[1733007947167,4.45339679,3727.1,3727.0,2.0]
[1733007947976,3.52344617,3727.1,3727.0,2.0]
[1733007948697,0.07269617,3727.1,3727.0,2.0]
[1733007949088,0.8308,3727.9,3727.0,2.0]
[1733007949406,0.8308,3727.9,3727.3,2.68284]
[1733007949575,0.07242907,3727.8,3727.3,2.68284]
[1733007950218,2.75500907,3727.8,3727.1,2.68305]
[1733007950416,2.75500907,3727.8,3727.3,2.68284]
[1733007950417,0.07242907,3727.8,3727.3,2.68284]
[1733007950709,0.07242907,3727.8,3727.4,3.0]
[1733007950918,0.07242907,3727.8,3727.7,2.68261]
[1733007951096,2.68221,3728.3,3727.7,2.68261]
[1733007951270,0.8308,3728.7,3727.4,2.68282]
[1733007951476,2.68215,3728.4,3727.5,3.0999943]
[1733007951710,2.68225,3728.3,3727.5,3.0999943]
[1733007951878,2.68239,3728.1,3727.5,0.4172643]
[1733007952079,2.68197,3728.6,3727.5,0.4172643]
[1733007952279,2.6824,3728.1,3727.5,0.4172643]
[1733007952615,2.68262,3727.7,3727.1,2.68304]
[1733007952823,0.8308,3727.6,3727.1,2.68304]
[1733007952972,2.68284,3727.4,3727.0,2.0]
[1733007953169,3.51351,3727.6,3727.0,2.0]
[1733007953373,2.68278,3727.5,3727.0,2.0]
[1733007953615,2.75517335,3727.5,3727.0,2.0]
[1733007953817,2.68291,3727.3,3727.0,2.0]
[1733007953976,2.68305,3727.1,3727.0,2.0]
[1733007954407,2.75546945,3727.1,3727.0,2.0]
[1733007955714,3.58626945,3727.1,3727.0,2.0]
[1733007955915,4.2131884,3727.1,3727.0,2.0]
[1733007956227,3.58626945,3727.1,3727.0,2.0]
[1733007956400,0.07241945,3727.1,3727.0,2.0]
[1733007956598,2.68277,3727.5,3727.0,2.0]
[1733007956844,0.06984663,3727.1,3727.0,2.0]
[1733007957000,2.68289,3727.4,3727.0,2.0]
[1733007957319,5.22561999,3728.0,3727.0,4.88311]
[1733007957320,0.06984663,3727.1,3727.0,4.88311]
[1733007957520,0.8308,3728.0,3727.1,2.68305]
[1733007957675,0.07003544,3727.9,3727.3,2.68289]
[1733007957878,0.07003544,3727.9,3727.1,2.68305]
[1733007958081,2.68255,3727.8,3727.1,3.439674]
[1733007958307,0.07003544,3727.9,3727.5,2.68275]
[1733007958488,2.68233,3728.1,3727.5,2.68275]
[1733007958489,0.07025933,3727.7,3727.5,2.68275]
[1733007958812,0.07000764,3727.6,3727.3,2.68285]
[1733007958973,2.68233,3728.1,3727.2,2.68297]
[1733007959171,0.07021215,3727.5,3727.4,2.68282]
[1733007959403,2.68233,3728.1,3727.4,2.68282]
[1733007959616,0.06996442,3727.5,3727.4,2.68282]
[1733007959925,2.68224,3728.3,3727.6,2.68266]
[1733007960123,3.51293,3728.4,3727.4,2.68282]
[1733007960282,2.75301777,3727.5,3727.0,2.0]
[1733007960477,0.7683,3727.7,3727.1,2.68303]
[1733007960814,0.7683,3728.1,3727.3,2.6829]
[1733007961012,0.0703567,3727.6,3727.5,2.68275]
[1733007961316,2.6822,3728.3,3727.7,2.6826]
[1733007961517,0.07042653,3728.2,3727.7,2.6826]
[1733007961679,0.3220118,3728.2,3727.7,2.6826]
[1733007962014,0.65412208,3728.1,3727.7,2.6826]
[1733007962321,0.25158527,3728.0,3727.8,2.68248]
[1733007962533,0.07041206,3728.1,3727.7,0.536542]
[1733007962534,0.07041206,3728.1,3727.9,2.70929359]
[1733007962674,0.65371612,3728.6,3727.9,3.46644]
[1733007962874,0.2511934,3728.5,3727.9,0.784]
[1733007963080,0.2511934,3728.4,3728.0,2.68237]
[1733007963402,3.77514277,3728.7,3728.0,2.68237]
[1733007963602,0.25117714,3728.6,3728.0,2.68237]
[1733007963901,0.25117714,3728.5,3728.0,2.68239]
[1733007964102,0.25117714,3728.4,3728.0,2.68239]
[1733007964341,1.09323277,3728.7,3728.6,2.68197]
[1733007964521,0.2511064,3729.1,3729.0,2.68168]
[1733007964673,0.2511064,3729.1,3728.9,2.68173]
[1733007964674,0.25109611,3729.5,3729.1,2.68159]
[1733007964989,0.31714405,3729.4,3729.1,2.68159]
[1733007965190,0.06604794,3729.4,3729.1,2.68159]
[1733007965392,3.31145999,3730.3,3729.0,2.68163]
[1733007965597,0.06599705,3729.3,3729.1,2.68159]
[1733007965800,0.7683,3730.3,3728.7,0.784]
[1733007966005,0.25042638,3730.2,3729.6,2.68121]
[1733007966210,0.25042638,3730.5,3729.7,0.784]
[1733007966524,0.1593607,3730.7,3728.8,2.68182]
[1733007966525,2.6809,3730.1,3729.3,2.68145]
[1733007966832,2.94907,3730.0,3729.0,2.68166]
[1733007966985,2.94907,3730.0,3728.8,0.784]
[1733007967187,0.26809,3730.0,3729.0,2.68168]
[1733007967380,0.26809,3730.0,3729.3,2.68146]
[1733007967985,0.26809,3730.0,3728.9,0.02681023]
[1733007968222,0.06629521,3729.9,3729.4,2.68139]
[1733007968508,2.68068,3730.4,3729.5,0.784]
[1733007968714,0.06647126,3730.3,3729.7,2.68112]
[1733007969054,2.68062,3730.5,3729.5,3.46532]
[1733007969216,0.06637487,3730.2,3729.5,3.46532]
[1733007969546,0.25000307,3730.4,3729.6,2.68125]
[1733007969732,2.68062,3730.5,3729.5,0.784]
[1733007969733,0.06636204,3730.1,3729.7,2.68116]
[1733007970051,0.06632274,3730.4,3729.5,0.784]
[1733007970208,0.06412641,3730.0,3729.5,0.784]
[1733007970551,2.8398307,3730.7,3729.8,2.68109]
[1733007970711,0.06410284,3729.9,3729.8,2.68109]
[1733007971157,2.8398307,3730.7,3729.6,2.68125]
[1733007971316,2.68054,3730.6,3729.6,2.68125]
[1733007971750,0.06424422,3730.5,3729.6,2.68125]
[1733007972255,0.06424422,3730.5,3729.5,1.130533]
[1733007972428,0.06424422,3730.5,3729.7,2.68116]
[1733007972624,2.68054,3730.6,3729.7,2.68116]
[1733007972843,2.5897507,3730.8,3730.0,2.68095]
[1733007973017,0.06424422,3730.5,3729.8,2.68107]
[1733007973365,0.7683,3730.9,3729.7,3.3304613]
[1733007973366,2.68053,3730.6,3729.7,3.3304513]
[1733007973529,0.06424806,3730.4,3729.8,2.6811]
[1733007973857,2.68047,3730.7,3729.9,2.68101]
[1733007974021,2.68002,3731.4,3730.0,0.8256]
[1733007974022,3.49406,3731.4,3730.0,0.8256]
[1733007974219,3.49406,3731.4,3730.5,2.68059]
[1733007974423,0.06231924,3731.3,3730.5,2.68059]
[1733007974659,0.06231924,3731.3,3730.5,2.68055]
[1733007974965,0.06231924,3731.3,3730.7,0.8256]
[1733007975129,2.68023,3731.1,3730.2,0.8256]
[1733007975333,2.68053,3730.6,3730.2,0.8256]
[1733007975561,0.06012902,3731.0,3730.2,0.8256]
[1733007975765,0.06012902,3731.0,3730.4,2.68067]
[1733007975971,2.97705,3731.5,3730.2,0.8256]
[1733007975972,2.97705,3731.5,3730.7,2.68044]
[1733007976181,0.06037841,3730.9,3730.7,2.68044]
[1733007976329,0.06037841,3730.9,3730.2,0.85239913]
[1733007976330,0.06037841,3730.9,3730.4,2.68063]
[1733007976663,0.06041202,3730.8,3730.3,2.68074]
[1733007977038,2.68003,3731.3,3730.3,2.68074]
[1733007977240,0.2971,3731.5,3730.9,2.6803]
[1733007977444,0.2971,3731.5,3731.0,2.68018]
[1733007977755,0.2971,3731.5,3730.9,2.6803]
[1733007977756,0.2971,3731.5,3731.2,2.6801]
[1733007977931,0.2971,3731.5,3731.4,2.67995]
[1733007978264,0.2971,3731.5,3731.4,3.50555]
[1733007979455,0.2971,3731.5,3731.4,0.8256]
[1733007979969,0.2971,3731.5,3731.4,3.50555]
[1733007979970,0.35782451,3731.5,3731.4,3.50555]
[1733007981039,0.2971,3731.5,3731.4,3.50555]
[1733007982341,0.2971,3731.5,3731.2,2.6801]
[1733007982545,0.35783047,3731.5,3731.4,2.67995]
[1733007983078,0.2971,3731.5,3731.4,7.1342931]
[1733007985101,0.2471,3731.5,3731.4,7.1342931]
[1733007986943,0.2471,3731.5,3731.4,0.8111]
[1733007987087,0.2471,3731.5,3731.2,3.752371]
[1733007987286,0.2471,3731.5,3731.2,2.68006]
[1733007987590,0.06170353,3731.4,3731.2,2.68006]
[1733007989703,0.06170353,3731.4,3731.1,1.072302]
[1733007989857,0.06170353,3731.4,3731.2,2.6801]
[1733007990251,0.06170353,3731.4,3730.6,0.8111]
[1733007990479,1.11697035,3731.3,3730.6,0.8111]
[1733007990702,0.06170353,3731.4,3730.6,0.8111]
[1733007990864,0.06162073,3731.2,3730.6,0.8111]
[1733007991065,0.2471,3731.5,3730.6,0.8111]
[1733007991602,0.06166779,3731.4,3730.6,0.83789795]
[1733007991778,0.2471,3731.5,3730.6,0.83789795]
[1733007992108,0.2471,3731.5,3730.7,0.1910353]
[1733007992908,0.2471,3731.5,3730.8,0.02679705]
[1733007993271,0.2471,3731.5,3730.9,0.8111]
[1733007993784,0.2471,3731.5,3731.0,0.02679455]
[1733007995009,0.2471,3731.5,3731.3,0.8111]
[1733007995168,0.2471,3731.5,3731.4,0.38111]
[1733007996710,0.2471,3731.5,3731.3,0.8111]
[1733007997210,0.06183072,3731.4,3731.3,0.8111]
[1733007997381,0.06183072,3731.4,3730.8,0.8111]
[1733007997576,0.2471,3731.5,3730.8,0.8111]
[1733007997577,0.2471,3731.5,3731.0,3.0]
[1733007997780,0.2471,3731.5,3730.8,0.8111]
[1733007999589,0.2471,3731.5,3730.9,0.92526209]
[1733007999829,0.2471,3731.5,3730.9,0.9520569]
[1733008000827,0.2471,3731.5,3730.9,0.92526209]
[1733008001196,0.2471,3731.5,3730.8,0.8111]
[1733008004893,0.2471,3731.5,3730.9,3.02679504]
[1733008005824,0.2471,3731.5,3730.7,0.1910353]
[1733008005825,0.2471,3731.5,3730.7,3.1910353]
[1733008006362,0.2471,3731.5,3730.7,2.89827955]
[1733008006509,0.2471,3731.5,3730.9,0.7906]
[1733008006848,0.2471,3731.5,3731.0,0.66888796]
[1733008007051,0.2471,3731.5,3730.9,0.7906]
[1733008007911,0.2471,3731.5,3730.9,3.7906]
[1733008008413,0.2471,3731.5,3731.0,0.0267943]
[1733008008751,0.2471,3731.5,3730.9,0.7906]
[1733008009110,0.2471,3731.5,3731.0,3.0]
[1733008009465,0.2471,3731.5,3731.1,0.64977044]
[1733008010307,0.2471,3731.5,3730.7,0.1910353]
[1733008010632,0.2471,3731.5,3730.3,0.8181]
[1733008010633,0.85205214,3731.4,3730.2,0.8202]
[1733008010838,0.7921,3731.4,3730.2,0.02679859]
[1733008011322,0.7921,3731.4,3730.3,2.68074]
[1733008011528,0.7921,3731.4,3730.4,0.84699653]
[1733008011713,0.2471,3731.5,3730.7,3.0]
[1733008011912,0.2471,3731.5,3730.7,3.02679537]
[1733008012126,0.2471,3731.5,3730.8,0.8202]
[1733008012412,0.2471,3731.5,3731.0,3.0]
[1733008012621,0.2471,3731.5,3731.1,0.02679377]
[1733008012840,0.2471,3731.5,3731.2,0.57070938]
[1733008013047,0.2471,3731.5,3730.8,0.84699453]
[1733008014050,0.2471,3731.5,3730.8,0.8202]
[1733008014515,0.2471,3731.5,3730.9,0.02679505]
[1733008014945,0.2471,3731.5,3730.8,0.8202]
[1733008015111,0.2471,3731.5,3730.9,2.7071025]
[1733008015326,0.2471,3731.5,3731.0,3.65273025]
[1733008015524,0.2471,3731.5,3731.1,3.02679228]
[1733008015726,0.25095233,3732.5,3732.4,3.8202]
[1733008015925,0.25095234,3732.7,3732.6,3.0]
[1733008016152,0.7921,3733.1,3732.6,3.0]
[1733008017357,0.7921,3733.1,3732.2,0.52934709]
[1733008017518,0.7921,3733.1,3732.2,1.1365978]
[1733008017714,0.7921,3733.1,3732.2,0.60725071]
[1733008017951,0.7921,3733.1,3731.7,3.52388875]
[1733008018143,0.7921,3733.1,3731.9,2.54315999]
[1733008018344,0.7921,3733.1,3732.0,3.0]
[1733008018926,0.7921,3733.1,3731.7,0.52388875]
[1733008019126,0.7921,3733.1,3732.0,3.0]
[1733008019663,0.7921,3733.1,3732.0,3.02678698]
[1733008020116,0.7921,3733.1,3732.0,3.02678364]
[1733008020458,0.7921,3733.1,3731.8,0.76183575]
[1733008020621,0.7921,3733.1,3731.8,3.14145121]
[1733008020846,0.7921,3733.1,3732.2,3.7566]
[1733008021143,0.7921,3733.1,3732.2,3.7833849]
[1733008022278,0.7921,3733.1,3732.2,3.7566]
[1733008023784,0.7921,3733.1,3732.3,0.02678378]
[1733008023987,0.7921,3733.1,3732.6,3.0]
[1733008025366,0.7921,3733.1,3732.2,3.0]
[1733008025784,0.7921,3733.1,3731.8,0.02678684]
[1733008025992,0.7921,3733.1,3732.1,2.54315999]
[1733008026348,0.7921,3733.1,3731.7,1.41711918]
[1733008026349,0.7921,3733.1,3731.7,3.96027917]
[1733008026683,0.7921,3733.1,3731.8,0.4254966]
[1733008027186,0.7921,3733.1,3731.7,2.67979042]
[1733008027393,0.7921,3733.1,3731.7,3.43749042]
[1733008027545,0.05412068,3733.0,3732.1,2.54315999]
[1733008027750,0.7921,3733.1,3732.1,2.54315999]
[1733008028465,0.7921,3733.1,3732.2,3.0]
[1733008028784,0.7921,3733.1,3732.2,3.55699454]
[1733008029559,0.7921,3733.1,3731.8,3.0]
[1733008029768,0.7921,3733.1,3731.7,0.13663043]
[1733008029990,0.7921,3733.1,3731.7,0.02678681]
[1733008030295,0.7921,3733.1,3731.9,3.0]
[1733008030505,0.7921,3733.1,3732.0,0.026787]
[1733008030684,0.7921,3733.1,3732.1,0.5706387]
[1733008030891,0.7921,3733.1,3732.2,0.02678688]
[1733008031074,0.7921,3733.1,3732.3,3.0]
[1733008031276,0.7921,3733.1,3732.4,0.02678502]
[1733008031684,0.7921,3733.1,3732.3,3.0]
[1733008031882,0.7921,3733.1,3732.4,0.66956502]
[1733008032567,0.7921,3733.1,3732.4,3.66956502]
[1733008035978,0.7921,3733.1,3732.4,6.90785518]
[1733008036199,0.7921,3733.1,3732.4,6.8810708]
[1733008036518,0.7921,3733.1,3732.4,9.42423079]
[1733008036811,0.7921,3733.1,3732.5,0.33901565]
[1733008037413,0.7921,3733.1,3732.7,3.0]
[1733008037712,0.7921,3733.1,3732.6,0.02678531]
[1733008037875,0.7921,3733.1,3732.5,3.33901565]
[1733008037876,0.7816,3733.4,3732.7,2.67896]
[1733008038217,0.1593607,3734.4,3732.7,2.67896]
[1733008038218,0.1593607,3734.4,3733.4,3.0]
[1733008038417,0.7816,3734.3,3733.5,0.567858]
[1733008041473,0.1593607,3734.4,3733.6,0.7753]
[1733008041770,0.7586,3734.3,3733.6,0.02677426]
[1733008042005,0.7586,3734.3,3733.5,0.567858]
[1733008042309,0.04741694,3734.2,3733.2,0.5364808]
[1733008042618,0.7586,3734.3,3733.2,0.5364808]
[1733008042790,0.0474065,3734.1,3733.2,0.5364808]
[1733008042992,0.7586,3734.0,3732.4,0.66956502]
[1733008043324,0.1593607,3734.4,3732.4,0.66956502]
[1733008043325,0.80597252,3733.9,3732.4,0.534498]
[1733008043825,0.80597252,3733.9,3732.4,0.56128082]
[1733008044195,0.80597252,3733.9,3732.6,2.54315999]
[1733008044537,0.7586,3733.9,3732.7,3.0]
[1733008044743,0.7586,3733.9,3732.8,2.70572099]
[1733008044912,0.7586,3733.9,3732.9,0.8248881]
[1733008045924,0.7586,3733.9,3733.1,3.0]
[1733008046902,0.7586,3733.9,3733.1,3.02677954]
[1733008047108,0.7586,3733.9,3733.1,3.0]
[1733008047944,0.7586,3733.9,3733.1,5.67873]
[1733008048150,0.7586,3733.9,3733.2,0.98220781]
[1733008048329,0.7586,3733.9,3733.4,2.54315999]
[1733008048504,0.7586,3733.9,3733.5,3.0]
[1733008049140,0.8191,3734.3,3733.5,5.67838]
[1733008049347,0.8191,3734.3,3733.5,3.0]
[1733008049499,0.8191,3734.3,3733.6,0.42485371]
[1733008051970,0.8191,3734.3,3733.0,2.54315999]
[1733008052122,0.04577396,3734.2,3733.0,3.1138934]
[1733008052630,0.8191,3734.3,3733.1,2.67873]
[1733008052823,0.8191,3734.3,3733.1,2.70550804]
[1733008053023,0.8191,3734.3,3733.2,5.67866]
[1733008053353,0.8191,3734.3,3733.3,0.87925529]
[1733008053865,0.8191,3734.3,3733.4,2.54315999]
[1733008054521,0.8191,3734.3,3733.5,3.0]
[1733008057720,0.8191,3734.3,3733.3,0.87925529]
[1733008057917,0.8191,3734.3,3733.2,0.8197]
[1733008058120,0.8191,3734.3,3733.1,3.02677761]
[1733008058367,0.8191,3734.3,3732.7,1.071625]
[1733008058523,0.8191,3734.3,3733.1,2.54315999]
[1733008058860,0.1593607,3734.4,3733.1,2.54315999]
[1733008058861,0.8191,3734.1,3733.1,2.54315999]
[1733008059064,0.8191,3734.1,3733.2,0.254316]
[1733008059420,0.8191,3734.1,3733.5,2.54315999]
[1733008059621,0.1593607,3734.4,3733.8,3.0]
[1733008059821,0.7918,3734.3,3733.8,3.0]
[1733008060967,0.7918,3734.3,3733.6,3.0]
[1733008061173,0.1593607,3734.4,3734.2,3.0]
[1733008061469,0.1593607,3734.4,3733.9,8.22131999]
[1733008062226,0.1593607,3734.4,3733.9,5.54315999]
[1733008062653,0.1593607,3734.4,3733.9,8.22129999]
[1733008063476,0.1593607,3734.4,3733.9,8.74541826]
[1733008063659,0.1593607,3734.4,3734.0,0.93817043]
[1733008064029,0.1593607,3734.4,3734.3,5.54315999]
[1733008068050,0.1593607,3734.4,3734.3,8.79780048]
[1733008068397,0.0330084,3735.7,3734.3,8.79780048]
[1733008068398,0.7918,3735.6,3734.4,3.55]
[1733008068585,0.7918,3735.6,3734.8,2.54315999]
[1733008069282,0.7918,3735.6,3734.9,3.0]
[1733008070713,0.0330084,3735.7,3735.3,0.8324]
[1733008070924,0.0330084,3735.7,3735.6,5.54315999]
[1733008071721,0.0330084,3735.7,3735.6,5.56992145]
[1733008072020,0.0330084,3735.7,3735.6,6.20620745]
[1733008072201,0.0330084,3735.7,3735.6,6.17944599]
[1733008072908,0.0330084,3735.7,3735.6,0.636286]
[1733008073108,0.0330084,3735.7,3735.6,5.54315999]
[1733008075785,0.0330084,3735.7,3735.2,2.54315999]
[1733008076222,0.0435275,3735.6,3735.2,2.54315999]
[1733008076386,0.7918,3735.5,3734.5,0.49813249]
[1733008076713,0.04344118,3735.4,3734.2,2.54315999]
[1733008076887,0.7918,3735.3,3734.3,0.254316]
[1733008077091,0.8347811,3735.3,3734.3,0.254316]
[1733008078221,0.8347811,3735.3,3734.3,3.254316]
[1733008078518,0.7918,3735.3,3734.3,3.254316]
[1733008080208,0.7918,3735.3,3733.8,2.54315999]
[1733008080607,0.7752,3735.1,3733.8,2.54315999]
[1733008081417,0.04306234,3735.0,3733.8,2.54315999]
[1733008081618,0.7752,3734.9,3733.9,3.0]
[1733008081947,0.7752,3734.9,3733.5,3.0]
[1733008082261,0.7752,3734.9,3733.5,3.637406]
[1733008082547,0.7752,3734.7,3733.0,2.54315999]
[1733008083049,0.81813706,3734.6,3733.0,2.54315999]
[1733008083341,0.81813706,3734.6,3733.1,0.02678241]
[1733008083552,0.81813706,3734.6,3733.2,2.54315999]
[1733008084006,0.7752,3734.6,3733.2,2.54315999]
[1733008084350,0.7752,3734.6,3733.3,0.254316]
[1733008084736,0.7752,3734.4,3733.2,2.54315999]
[1733008085246,0.04286654,3734.3,3732.8,3.0]
[1733008085461,0.7752,3734.2,3732.8,3.0]
[1733008085743,0.81764804,3734.2,3732.8,3.0]
[1733008085945,0.81764804,3734.2,3732.9,0.02678424]
[1733008086243,0.81764804,3734.2,3732.9,0.55699442]
[1733008086547,0.81764804,3734.2,3732.8,3.0]
[1733008086932,0.81764804,3734.2,3733.8,2.54315999]
[1733008087152,0.7752,3734.7,3733.9,3.0]
[1733008087388,0.7752,3734.7,3734.3,2.54315999]
[1733008087803,0.7752,3735.6,3734.4,3.0]
[1733008088008,0.7752,3735.6,3734.7,2.54315999]
[1733008089413,0.7752,3735.6,3735.1,2.54315999]
[1733008091112,0.55,3737.3,3735.1,2.64315999]
[1733008091312,0.03997822,3735.5,3735.1,2.64315999]
[1733008091672,0.55,3737.1,3735.1,2.64315999]
[1733008091821,0.03996308,3735.4,3735.2,0.274316]
[1733008092030,0.576896,3737.0,3735.2,0.274316]
[1733008092341,0.04031551,3736.9,3735.2,0.274316]
[1733008094192,0.7565,3736.8,3735.2,0.274316]
[1733008094545,0.7968032,3736.7,3735.2,0.274316]
[1733008094885,0.7968032,3736.7,3735.1,0.1]
[1733008095669,0.7968032,3736.7,3735.1,0.2]
[1733008096678,0.7968032,3736.7,3735.3,0.1]
[1733008096869,0.7968032,3736.7,3735.4,3.0]
[1733008097069,0.7565,3736.7,3735.5,0.574316]
[1733008097275,0.04032755,3736.6,3735.4,0.1]
[1733008097494,0.04032755,3736.6,3735.3,0.1]
[1733008097697,0.6565,3736.7,3735.3,0.1]
[1733008100326,0.04035027,3736.6,3735.3,0.1]
[1733008100492,0.8221,3736.5,3735.3,0.1]
[1733008100689,0.86243556,3736.5,3735.3,1.42]
[1733008100896,0.8221,3736.5,3735.3,1.42]
[1733008101418,0.8221,3736.5,3735.3,1.52]
[1733008101830,0.04031206,3736.4,3735.3,1.52]
[1733008102000,0.8221,3736.5,3735.3,4.52]
[1733008102329,0.8221,3736.5,3735.4,0.75258892]
[1733008102886,0.8221,3736.5,3735.3,0.2]
[1733008103634,0.8221,3736.5,3735.5,0.1]
[1733008106889,0.8221,3736.5,3735.4,3.0]
[1733008109137,0.8221,3736.5,3735.7,2.54315999]
[1733008109317,0.8221,3736.5,3735.5,0.2]
[1733008109525,0.8221,3736.5,3735.6,0.574316]
[1733008110402,0.8221,3736.5,3735.8,0.1]
[1733008111411,0.8221,3736.5,3736.0,2.54315999]
[1733008113170,0.8221,3736.5,3736.0,2.64315999]
[1733008114255,54.18379945,3737.4,3736.0,2.54315999]
[1733008114256,0.8221,3737.3,3736.0,2.54315999]
[1733008114424,0.8221,3737.1,3736.0,2.81747599]
[1733008114751,0.8221,3736.9,3736.0,2.81747599]
[1733008115130,0.03952863,3736.8,3736.0,2.81747599]
[1733008115326,0.03952863,3736.8,3736.0,2.91747599]
[1733008115942,0.81162863,3736.9,3736.0,2.91747599]
[1733008116257,0.03821697,3736.8,3736.2,0.1]
[1733008117356,0.03821697,3736.8,3736.4,2.54315999]
[1733008117558,0.03821697,3736.8,3736.5,3.1]
[1733008117765,0.03821697,3736.8,3736.6,0.1]
[1733008118066,0.03825135,3736.7,3736.6,0.1]
[1733008118239,54.18379945,3737.4,3736.6,3.29350599]
[1733008118419,54.18379945,3737.4,3736.8,0.1]
[1733008118620,0.03839227,3737.3,3736.8,0.1]
[1733008120128,0.03839227,3737.3,3737.1,2.54315999]
[1733008120466,0.03839227,3737.3,3737.2,0.1]
[1733008120675,0.03839227,3737.3,3737.2,0.374316]
[1733008123276,0.03839227,3737.3,3737.2,3.474316]
[1733008123566,0.03839227,3737.3,3737.2,4.278116]
[1733008126841,0.03839227,3737.3,3737.2,3.274316]
[1733008127051,0.03839227,3737.3,3737.2,3.0]
[1733008127289,54.18379945,3737.4,3737.3,6.66162]
[1733008127290,19.94745481,3737.4,3737.3,6.66162]
[1733008127452,4.83688156,3737.4,3737.3,6.66162]
[1733008127743,0.7637,3739.5,3738.0,3.1]
[1733008127947,2.00084034,3740.0,3738.8,5.74315999]
[1733008128148,2.00084034,3740.0,3738.8,0.2]
[1733008128149,0.7637,3739.8,3738.8,0.2]
[1733008128347,0.7637,3739.8,3738.8,5.74315999]
[1733008128735,0.005,3739.6,3738.8,5.74315999]
[1733008129170,0.005,3739.6,3738.8,5.64315999]
[1733008131580,0.7687,3739.6,3738.8,5.64315999]
[1733008133076,0.7687,3739.6,3738.8,5.66989992]
[1733008133379,0.005,3739.6,3738.8,5.66989971]
[1733008133580,0.005,3739.6,3738.8,5.64315999]
[1733008133747,0.005,3739.6,3738.8,6.42905999]
[1733008134864,0.005,3739.6,3738.8,6.53604699]
[1733008135276,0.005,3739.6,3738.8,9.76069699]
[1733008140187,0.005,3739.6,3739.5,0.1]
[1733008140387,0.005,3739.6,3739.5,5.64315999]
[1733008141659,0.005,3739.6,3739.5,10.96046998]
[1733008141903,0.005,3739.6,3739.5,6.55355999]
[1733008142057,51.36726007,3740.0,3739.9,0.9604]
[1733008142457,51.36726007,3740.0,3739.9,6.63426]
[1733008142657,51.36726007,3740.0,3739.9,3.9604]
[1733008142895,51.36726007,3740.0,3739.9,0.9604]
[1733008143271,48.69346007,3740.0,3739.9,10.50539732]
[1733008143599,25.17107631,3740.0,3739.9,11.04463095]
[1733008144103,25.19637255,3740.0,3739.9,10.66760634]
[1733008144273,25.19637255,3740.0,3739.9,11.02533667]
[1733008144596,18.51187255,3740.0,3739.9,11.02533667]
[1733008145015,18.51187255,3740.0,3739.9,7.04279362]
[1733008145983,18.51187255,3740.0,3739.9,4.04279362]
[1733008146189,18.51187255,3740.0,3739.9,6.71665362]
[1733008146377,18.51187255,3740.0,3739.9,4.04279362]
[1733008146760,18.51187255,3740.0,3739.9,6.71665362]
[1733008147707,18.3140962,3740.0,3739.9,10.26665362]
[1733008148204,11.6295962,3740.0,3739.9,10.26665362]
[1733008148500,7.6188962,3740.0,3739.9,10.63675618]
[1733008148999,0.1593607,3741.8,3739.9,10.63675618]
[1733008149000,0.1593607,3741.8,3740.2,7.49605]
[1733008149172,12.16881132,3741.1,3740.8,3.0]
[1733008149499,12.16881132,3741.1,3740.9,0.55]
[1733008150390,12.16881132,3741.1,3741.0,0.65]
[1733008150563,12.11881132,3741.1,3741.0,0.65]
[1733008151279,12.14324656,3741.1,3741.0,0.65]
[1733008152009,12.14324656,3741.1,3741.0,0.1]
[1733008152166,0.8381,3741.0,3740.4,0.1]
[1733008152603,0.02441709,3740.9,3740.4,0.1]
[1733008154502,0.8381,3740.8,3740.2,0.1]
[1733008155010,0.0243774,3740.7,3740.2,0.1]
[1733008155705,0.8381,3740.6,3740.2,0.1]
[1733008156072,13.33313598,3741.1,3739.5,0.02673177]
[1733008156073,0.02433054,3740.5,3739.7,0.1]
[1733008156406,0.8381,3740.4,3739.7,0.1]
[1733008156707,0.8381,3740.4,3739.0,0.1]
[1733008156875,0.8381,3740.2,3738.7,0.1]
[1733008157075,0.8381,3740.2,3738.0,10.1]
[1733008157076,3.51211,3739.8,3738.0,10.1]
[1733008157280,2.67422,3739.4,3738.0,10.0]
[1733008157486,0.8381,3739.3,3738.0,10.0]
[1733008157698,0.8381,3738.5,3738.1,1.070332]
[1733008158300,0.8381,3738.3,3738.1,1.070332]
[1733008158612,0.8381,3738.3,3738.0,10.0]
[1733008160017,0.1,3737.4,3736.2,0.54468234]
[1733008160168,1.3292,3736.3,3736.2,0.54468234]
[1733008160612,1.3292,3736.3,3735.2,1.070957]
[1733008160776,2.54315999,3735.5,3734.4,0.1]
[1733008160985,1.3292,3735.4,3734.2,0.1]
[1733008161290,1.3292,3735.4,3734.5,1.07131]
[1733008162265,0.1,3737.0,3734.6,0.1]
[1733008162638,1.3292,3736.8,3735.5,0.1]
[1733008162763,0.41520293,3736.7,3735.5,0.1]
[1733008163209,1.3292,3736.8,3735.5,0.1]
[1733008163763,1.3292,3736.8,3735.3,0.1]
[1733008163986,1.3292,3736.8,3735.5,0.1]
[1733008164212,1.3292,3736.8,3735.9,0.1]
[1733008164996,1.3292,3736.8,3735.3,0.02676207]
[1733008164997,1.3292,3736.8,3735.3,0.1]
[1733008165218,1.77590446,3736.8,3735.3,0.1]
[1733008167026,1.77590446,3736.8,3734.9,0.1]
[1733008167326,3.13784461,3736.6,3734.9,0.1]
[1733008167495,1.3292,3736.5,3734.5,1.17131]
[1733008167701,1.3292,3736.5,3734.8,0.1]
[1733008167903,1.3292,3736.0,3734.5,1.07131]
[1733008168101,0.44670446,3735.9,3734.6,0.02677505]
[1733008168290,0.44670446,3735.9,3734.5,1.17131]